[Event "LR Global GM Aspirant-1 2024"]
[Site "Dhaka"]
[Date "2024.02.14"]
[Round "2.3"]
[White "Liyanage, Ranindu Dilshan"]
[Black "Mayank Chakraborty"]
[Result "1/2-1/2"]
[ECO "E11"]
[WhiteElo "2366"]
[BlackElo "2409"]
[Annotator "TA"]
[PlyCount "60"]
[EventDate "2024.02.12"]
[EventType "tourn"]
[EventCountry "BAN"]
[SourceTitle "playchess.com"]
[Source "ChessBase"]
[SourceQuality "1"]
[TimeControl "5400+30"]

{[%evp 16,60,5,7,2,1,2,8,10,26,47,43,39,37,49,46,47,14,11,0,0,0,0,0,27,0,0,0,28,51,29,43,46,49,34,47,56,41,66,43,35,37,108,0,0,0,12]} 1. d4 {[%emt 0:15:55]} Nf6 {[%emt 0:00:02]} 2. c4 {[%emt 0:00:08]} e6 {[%emt 0:00:05]} 3. Nf3 {[%emt 0:00:17]} d5 {[%emt 0:00:05]} 4. g3 {[%emt 0:00:19]} Bb4+ {[%emt 0:00:08]} 5. Bd2 {[%emt 0:00:31]} Be7 {[%emt 0:00:09]} 6. Bg2 {[%emt 0:00:31]} O-O {[%emt 0:00:06]} 7. O-O {[%emt 0:01:09]} c6 {[%emt 0:00:05]} 8. Qc2 {[%emt 0:01:26]} b6 {[%emt 0:00:37]} 9. Ne5 {[%emt 0:04:52]} Bb7 {[%emt 0:06:04]} 10. cxd5 {[%emt 0:04:40]} cxd5 {[%emt 0:00:41]} 11. Rc1 {[%emt 0:03:17]} Bd6 {[%emt 0:12:22] Prevents Qc7} 12. Na3 {[%emt 0:07:17][%cal Bb1a3,Ba3b5,Bb5d6][%mdl 32]} (12. Nc3 {simplifies} Nbd7 13. Nd3 Rc8 14. Qd1) 12... Nfd7 {[%emt 0:12:00]} 13. Nb5 {[%emt 0:10:23]} Nxe5 {[%emt 0:01:06]} 14. Nxd6 $1 {[%emt 0:01:39]} Qxd6 {[%emt 0:00:08]} 15. dxe5 {[%emt 0:00:05] Black is weak on the dark squares} Qd7 {[%emt 0:06:12]} ({Of course not} 15... Qxe5 16. Bf4 Qf6 17. Qc7 $16) 16. Bb4 {[%emt 0:08:44]} Rc8 {[%emt 0:00:42]} 17. Qd3 {[%emt 0:01:29]} Nc6 {[%emt 0:02:55]} 18. Bd6 {[%emt 0:00:12]} f6 {[%emt 0:08:29]} 19. f4 {[%emt 0:01:12]} Nd8 {[%emt 0:11:49]} 20. Qd4 {[%emt 0:03:43]} Nf7 {[%emt 0:00:44]} 21. Bb4 {[%emt 0:01:52] A strong pair of Bishops.} a5 {[%emt 0:06:59] [#] Hoping for ...fxe5.} 22. Bd2 {[%emt 0:04:47]} fxe5 {[%emt 0:06:08]} 23. fxe5 {[%emt 0:00:13]} b5 {[%emt 0:04:04][%cal Bb6b5,Bb5b4][%mdl 32]} 24. Rxc8+ {[%emt 0:08:05]} Rxc8 {[%emt 0:04:37]} 25. Bxa5 {[%emt 0:00:46]} Rc4 {[%emt 0:00:18] Prevents b3} 26. Qa7 {[%emt 0:01:19]} Qc8 {[%emt 0:03:12][%cal Oc4c2]} 27. Bc3 {[%emt 0:11:29]} b4 {[%emt 0:00:13]} 28. Bd4 {[%emt 0:00:50]} Nd8 {[%emt 0:00:26] [#]} ({Black should play} 28... Ba6 $14) 29. e3 {[%emt 0:02:41] White is more active.} (29. Qb6 $1 $16) 29... Nc6 $11 {[%emt 0:00:39]} 30. Qb6 {[%emt 0:00:05] White wants to play Bf1.} Rc2 {[%emt 0:04:55] Weighted Error Value: White=0.13 (very precise) /Black=0.10 (very precise) .  Mistake:       	White=1     	Black=1      Inaccurate:     	White=2     	Black=2      OK:         	White=12    	Black=10     Best:        	---       	Black=2      Strong:       	White=1     	---} 1/2-1/2

[Event "LR Global GM Aspirant-1 2024"]
[Site "Dhaka"]
[Date "2024.02.14"]
[Round "2.4"]
[White "Panesar Vedant"]
[Black "Aradhya, Garg"]
[Result "1-0"]
[ECO "C84"]
[WhiteElo "2452"]
[BlackElo "2390"]
[Annotator "TA"]
[PlyCount "81"]
[EventDate "2024.02.12"]
[EventType "tourn"]
[EventCountry "BAN"]
[SourceTitle "playchess.com"]
[Source "ChessBase"]
[SourceQuality "1"]
[TimeControl "5400+30"]

{[%evp 15,81,14,12,11,38,42,38,19,35,0,15,-31,29,17,17,0,23,10,6,5,27,0,68,72,68,51,60,17,17,16,10,0,0,-3,40,43,0,31,118,104,110,123,133,130,227,219,208,200,258,227,225,229,220,253,259,234,234,233,4881,4690,29975,29976,29976,29977,29977,29978,29972,29972]} 1. e4 {[%emt 0:00:02]} e5 {[%emt 0:00:01]} 2. Nf3 {[%emt 0:00:09]} Nc6 {[%emt 0:00:06]} 3. Bb5 {[%emt 0:00:01][%cal Bf1b5,Bb5a4,Ba4b3][%mdl 32]} a6 {[%emt 0:00:05]} 4. Ba4 {[%emt 0:00:04]} Nf6 {[%emt 0:00:20]} 5. O-O {[%emt 0:00:07]} Be7 {[%emt 0:00:55]} 6. d3 {[%emt 0:00:04]} b5 {[%emt 0:01:11]} 7. Bb3 {[%emt 0:00:03]} d6 {[%emt 0:00:38]} 8. c3 {[%emt 0:00:07]} O-O {[%emt 0:01:18]} 9. h3 {[%emt 0:00:05]} Be6 {[%emt 0:02:29]} 10. Bxe6 {[%emt 0:01:35]} fxe6 {[%emt 0:00:02]} 11. a4 {[%emt 0:00:01] White is slightly better.} Qd7 {[%emt 0:01:26]} 12. Na3 {[%emt 0:00:53]} d5 {[%emt 0:02:53]} 13. Qc2 {[%emt 0:03:50]} (13. exd5 $11 exd5 14. axb5 axb5 15. Be3) 13... bxa4 {[%emt 0:09:40]} (13... b4 $15 14. Nb1 Nh5) 14. Be3 {[%emt 0:08:16]} (14. Qxa4 Nd4 15. Qxd7 Nxf3+ 16. gxf3 Nxd7 $15) 14... Rad8 {[%emt 0:37:48]} 15. Nb1 {[%emt 0:04:05]} d4 {[%emt 0:04:43]} 16. cxd4 {[%emt 0:00:44]} exd4 {[%emt 0:00:12]} 17. Bd2 {[%emt 0:01:10][%cal Of1c1] Threatening Rc1!} Nh5 $1 {[%emt 0:02:07][%cal Of8f3]} 18. Ne1 {[%emt 0:23:02][%cal Ob1a3]} (18. Rxa4 Rxf3 19. gxf3 Ne5 20. Rxa6 Nxf3+ 21. Kh1 Bd6 $17) 18... Nf4 {[%emt 0:11:41]} (18... Rb8 $11) 19. Bxf4 $14 {[%emt 0:01:42]} (19. Rxa4 Ne2+ 20. Kh1 Ne5 $19 (20... Ng3+ $2 21. Kg1 $19)) 19... Rxf4 {[%emt 0:00:02]} 20. Nd2 {[%emt 0:02:48]} Bb4 {[%emt 0:03:40]} 21. Nef3 {[%emt 0:06:32]} (21. Nc4 $5) 21... Bxd2 {[%emt 0:01:13]} 22. Nxd2 {[%emt 0:00:42][%cal Od2c4]} (22. Qxd2 Rxf3 23. gxf3 Ne5 $17) 22... Nb4 {[%emt 0:00:12]} 23. Qc4 {[%emt 0:05:20]} Qb5 {[%emt 0:00:57]} 24. Ra3 {[%emt 0:03:41]} (24. Qxc7 Rdf8 (24... Rff8 25. Qc4 $14) 25. Qc4 Nxd3 26. Rxa4 Qxc4 (26... Rxf2 27. Qxe6+ Kh8 28. Rxf2 $16) (26... Nxf2 27. Qxb5 axb5 28. Rxd4 $11) 27. Rxc4 Rxf2 (27... Nxf2 28. Rxd4 e5 29. Ra4 $11) 28. Rxf2 Rxf2) 24... Rdf8 {[%emt 0:04:23]} 25. Qxe6+ {[%emt 0:02:35]} ({And not} 25. Qxc7 Nxd3 26. Qd6 R4f7 (26... Nxb2 27. Qxe6+ Kh8 28. Qd6 $11) 27. Qxe6 Nf4 $17 (27... Qxb2 $2 28. Rxd3 Qb7 29. Rxd4 $18) (27... Nxb2 28. Rf3 $11)) 25... Kh8 {[%emt 0:00:07]} 26. Qc4 {[%emt 0:01:26] Inhibits Nc2.} c5 {[%emt 0:01:09] White stays focused until the end.} (26... R4f6 $14) 27. g3 $16 {[%emt 0:01:12]} R4f6 {[%emt 0:03:25]} 28. f4 {[%emt 0:00:26]} Qd7 {[%emt 0:02:59]} 29. Kg2 {[%emt 0:01:41]} Qe7 {[%emt 0:01:16]} (29... Rh6 $16 {was necessary.} 30. f5 (30. Qxc5 Qxh3+ 31. Kf3 Rhf6 $19) 30... Qb5) 30. Nf3 {[%emt 0:02:20]} h6 {[%emt 0:01:36]} 31. Rxa4 {[%emt 0:01:08]} Qe6 {[%emt 0:01:32]} 32. Qxc5 {[%emt 0:10:29]} Nxd3 {[%emt 0:00:22]} 33. Qxd4 {[%emt 0:01:35]} Nxf4+ {[%emt 0:02:13]} 34. gxf4 {[%emt 0:00:08]} Rxf4 {[%emt 0:00:03][%cal Bf6f4,Bf4f3,Bf3e3][%mdl 32]} 35. Qe3 {[%emt 0:02:28]} Qg6+ {[%emt 0:00:58]} 36. Kh2 {[%emt 0:00:53]} Qf6 {[%emt 0:00:13] [#] Dodges Nh4} (36... Qe8 37. Rc4 (37. Rxa6 Qb5 $11) 37... Qb8) 37. e5 $1 $18 {[%emt 0:02:25]} Rxf3 {[%emt 0:00:03]} 38. exf6 {[%emt 0:00:10] White mates.} Rxe3 {[%emt 0:00:06]} 39. fxg7+ {[%emt 0:00:04]} (39. Rxa6 Re2+ 40. Kg1 Rxb2 $14) 39... Kxg7 {[%emt 0:00:09]} 40. Rg4+ {[%emt 0:00:02]} Kh7 {[%emt 0:00:07]} 41. Rxf8 {[%emt 0:00:02] Weighted Error Value: White=0.09 (flawless) /Black=0.33.  Mistake:       	White=1     	Black=5      Inaccurate:     	White=2     	Black=3      OK:         	White=12    	Black=9      Best:        	White=3     	Black=2      Strong:       	White=1     	Black=1} 1-0

[Event "LR Global GM Aspirant-1 2024"]
[Site "Dhaka"]
[Date "2024.02.14"]
[Round "2.5"]
[White "Mohammad Fahad, Rahman"]
[Black "Siddharth, Jagadeesh"]
[Result "0-1"]
[ECO "C02"]
[WhiteElo "2418"]
[BlackElo "2457"]
[Annotator "TA"]
[PlyCount "58"]
[EventDate "2024.02.12"]
[EventType "tourn"]
[EventCountry "BAN"]
[SourceTitle "playchess.com"]
[Source "ChessBase"]
[SourceQuality "1"]
[TimeControl "5400+30"]

{[%evp 10,58,25,0,0,-6,7,0,0,-28,-25,-28,-23,-21,-8,-33,-20,-26,-20,-34,-34,-55,0,-54,-33,-35,-48,-35,-43,-41,-39,-35,-71,-69,-25,-22,-49,-586,-566,-469,-427,-29989,-29990,-29990,-29991,-29994,-29995,-29995,-29996,-29996,-29997]} 1. e4 {[%emt 0:00:11][%cal Be2e4,Be4e5][%mdl 32]} e6 {[%emt 0:00:21]} 2. d4 {[%emt 0:00:36]} d5 {[%emt 0:00:07]} 3. e5 {[%emt 0:00:53]} c5 {[%emt 0:00:09]} 4. c3 {[%emt 0:00:06]} Nc6 {[%emt 0:00:05]} 5. Nf3 {[%emt 0:00:12]} Qc7 {[%emt 0:00:07]} 6. Be2 {[%emt 0:05:23]} f6 {[%emt 0:00:08][%cal Rf6e5]} 7. O-O {[%emt 0:08:19]} fxe5 {[%emt 0:00:38]} 8. dxe5 {[%emt 0:00:13]} Nh6 {[%emt 0:00:12] The position is equal.} 9. Bxh6 {[%emt 0:09:55]} gxh6 {[%emt 0:00:09]} 10. c4 {[%emt 0:00:43]} d4 {[%emt 0:03:44][%cal Oc8d7]} 11. Re1 {[%emt 0:04:18]} Bd7 {[%emt 0:03:37][%cal Oe8c8]} 12. Nbd2 {[%emt 0:03:34]} O-O-O {[%emt 0:00:20][%cal Od7e8]} 13. Bd3 {[%emt 0:00:40]} Be8 {[%emt 0:00:21]} 14. a3 {[%emt 0:01:40]} Rg8 {[%emt 0:06:01]} 15. Qc2 {[%emt 0:09:16]} Rd7 {[%emt 0:02:07]} (15... Rg7 $15) 16. Ne4 {[%emt 0:04:24]} ({White should play} 16. b4 $11) 16... Bh5 $1 $15 {[%emt 0:07:39]} 17. Nfd2 {[%emt 0:03:57]} (17. Nf6 $2 Bxf3 (17... Rxg2+ $2 18. Kxg2 Rg7+ 19. Ng5 $19) 18. Nxg8 Rg7 $19) 17... Nxe5 {[%emt 0:01:26]} (17... Qxe5 18. Ng3 Qg7 19. Rxe6 $14) 18. Nf6 {[%emt 0:02:07][%csl LRd7,LRg8,LRh5,LRh7][%cal Of6h5] [#]} Ng4 $1 {[%emt 0:04:12] The board is on fire.} 19. Nxg4 {[%emt 0:00:12]} Bxg4 {[%emt 0:00:06]} 20. Ne4 {[%emt 0:00:34]} Rdg7 $40 {[%emt 0:09:59][%cal Og4d1][%mdl 128] ...Bd1! would now be deadly. Black wants a kill.} 21. Qa4 {[%emt 0:09:48]} (21. Nf6 Be2 22. Nxg8 (22. Qxe2 $2 Rxg2+ 23. Kh1 Rxh2#) 22... Rxg2+ 23. Kxg2 Qg7+ $19) 21... Bd6 {[%emt 0:05:48]} (21... Be7 $5 22. Qxa7 Be2 23. Qa8+ (23. Bxe2 $2 Rxg2+ 24. Kh1 Rxh2#) 23... Kd7 24. Qxg8 (24. Qa4+ $2 b5 $19) 24... Rxg8 25. Rxe2 Qa5 $14) 22. g3 $1 {[%emt 0:07:01]} Kb8 {[%emt 0:13:02]} 23. Nf6 {[%emt 0:03:54][%mdl 8192] [#] Repels h5. Loses the game.} (23. b4 $15) 23... Bxg3 $1 $19 {[%emt 0:02:55][%mdl 512]} 24. fxg3 {[%emt 0:03:51]} Bh3 {[%emt 0:02:02][%cal Og7g3] ( -> ...Rxg3+!)} 25. Nh5 {[%emt 0:14:31] [#]} (25. Nxg8 {leads to mate.} Rxg3+ 26. Kh1 Bg2+ (26... Rxd3 27. Qe8+ Qc8 28. Qxc8+ Kxc8 29. Rg1 $18) 27. Kg1 Bc6+ (27... Rxd3 $2 {loses.} 28. Qe8+ Qc8 29. Qxc8+ Kxc8 30. Kxg2 $18) 28. Kf1 Qf4+ (28... Bxa4 $2 29. hxg3 Qxg3 30. Be4 $19) 29. Ke2 Rg2+ 30. Kd1 Qd2#) (25. Nd7+ $19 Rxd7 (25... Qxd7 $2 26. Qxd7 Rxd7 27. b4 $19) 26. Qc2) 25... Rxg3+ $3 {[%emt 0:00:14][%mdl 512] Black mates.} 26. hxg3 {[%emt 0:00:25]} Rxg3+ {[%emt 0:00:06]} 27. Kf2 {[%emt 0:00:04] [#]} Rg2+ $1 {[%emt 0:00:17]} 28. Kf3 {[%emt 0:00:05]} Qf7+ {[%emt 0:00:09]} 29. Nf4 {[%emt 0:00:39] [#]} Rf2+ $3 {[%emt 0:00:06][%mdl 512] Weighted Error Value: White=0.61/Black=0.06 (flawless) .  Loses game:     	White=1     	---        Mistake:       	White=2     	Black=1      Inaccurate:     	White=1     	Black=1      OK:         	White=5     	Black=7      Best:        	---       	Black=1      Strong:       	White=1     	Black=2      Brilliant:      	---       	Black=2} 0-1

[Event "LR Global GM Aspirant-1 2024"]
[Site "Dhaka"]
[Date "2024.02.14"]
[Round "3.1"]
[White "Siddharth, Jagadeesh"]
[Black "De Silva, L M S T"]
[Result "1-0"]
[ECO "C50"]
[WhiteElo "2457"]
[BlackElo "2398"]
[Annotator "TA"]
[PlyCount "83"]
[EventDate "2024.02.12"]
[EventType "tourn"]
[EventCountry "BAN"]
[SourceTitle "playchess.com"]
[Source "ChessBase"]
[SourceQuality "1"]
[TimeControl "5400+30"]

{[%evp 17,83,-1,0,-12,16,25,33,35,20,37,25,32,34,55,58,56,136,0,0,18,24,14,16,16,89,85,69,93,164,101,110,85,137,137,133,158,147,64,56,72,70,74,61,50,70,49,76,67,100,106,133,91,95,97,293,293,278,216,263,250,414,355,448,209,470,415,29979,29980]} 1. e4 {[%emt 0:00:18]} e5 {[%emt 0:00:16]} 2. Nf3 {[%emt 0:00:07]} Nc6 {[%emt 0:00:04]} 3. Bc4 {[%emt 0:00:11]} Bc5 {[%emt 0:00:31]} 4. Nc3 {[%emt 0:00:09]} Nf6 {[%emt 1:31:39]} 5. d3 {[%emt 0:00:08]} O-O {[%emt 0:00:00]} 6. O-O {[%emt 0:00:12]} h6 {[%emt 0:00:00]} 7. h3 {[%emt 0:00:08]} a6 {[%emt 0:00:00]} 8. Be3 {[%emt 0:00:00]} Bxe3 9. fxe3 d6 {[%emt 0:00:00]} 10. d4 {[%emt 1:34:17]} exd4 {[%emt 0:00:00]} 11. exd4 {[%emt 0:00:30]} Nxe4 12. Nxe4 {[%emt 0:00:00] White is slightly better.} d5 {[%emt 0:00:00]} 13. Bd3 {[%emt 0:00:00]} dxe4 {[%emt 0:00:00]} 14. Bxe4 {[%emt 0:00:00]} Ne7 {[%emt 0:00:00]} 15. c3 {[%emt 0:00:00]} Qd6 {[%emt 0:00:00]} 16. Ne5 {[%emt 0:00:00]} c5 {[%emt 0:00:00]} (16... Be6 $14) 17. Qd3 {[%emt 0:00:00] White is much more active. The black rooks are passive.} (17. Nc4 $1 $16 {[%cal Rc4d6]} Qg3 18. dxc5) 17... Be6 $1 $11 {[%emt 0:00:00]} 18. Bxb7 {[%emt 0:00:00]} Rab8 {[%emt 0:00:00]} 19. Bxa6 {[%emt 0:00:00]} cxd4 {[%emt 0:00:00]} (19... Rxb2 {keeps more tension.} 20. Bc4 cxd4 21. cxd4 Bd5) 20. cxd4 {[%emt 0:00:00]} Bf5 {[%emt 0:00:00] [#]} 21. Qe2 $1 $16 {[%emt 0:00:00]} Qxd4+ {[%emt 0:00:00]} 22. Rf2 {[%emt 0:00:00]} Rb6 {[%emt 0:00:00] [#]} (22... Be6 $16 {might work better.}) 23. Rd1 {[%emt 0:00:00]} (23. Bc4 $1 $18) 23... Qa4 {[%emt 0:00:00][%csl LRa2,LRa6]} 24. Bd3 {[%emt 0:00:00]} Rxb2 {[%emt 0:00:00]} 25. Qxb2 {[%emt 0:00:00]} Qxd1+ {[%emt 0:00:00]} 26. Rf1 {[%emt 0:00:00][%cal Bf2f1,Bf1f5,Bf5d5][%mdl 32]} Qh5 {[%emt 0:00:00]} 27. Bxf5 {[%emt 0:00:00]} ({White should play} 27. g4 $16 Qxh3 28. gxf5 (28. Bxf5 Qg3+ 29. Kh1 Qh3+ 30. Kg1 Qg3+ 31. Kh1 Qh3+ 32. Kg1 $11) (28. Rf3 Qh4 $18)) 27... Nxf5 $14 {[%emt 0:00:00]} 28. g4 {[%emt 0:00:00]} Qxh3 {[%emt 0:00:00] Hoping for ...Qg3+.} 29. Rxf5 {[%emt 0:00:00]} ({Don't play} 29. gxf5 Qg3+ 30. Kh1 Qh3+ 31. Kg1 Qg3+ 32. Kh1 Qh3+ 33. Kg1 $11) 29... Qg3+ {[%emt 0:00:00]} 30. Qg2 {[%emt 0:00:00]} Qe1+ {[%emt 0:00:00]} 31. Kh2 {[%emt 0:00:00]} Rd8 {[%emt 0:00:00] Prevents Qd5.} 32. Nf3 {[%emt 0:00:00] Prevents Rd2} (32. Nxf7 $2 Rd2 33. Ne5 Rxg2+ 34. Kxg2 Qd2+ 35. Kh3 Qc3+ (35... Qxa2 $2 36. Nf3 $17) 36. Nf3 Qa3 $17) 32... Qc1 {[%emt 0:00:00]} 33. Qe2 {[%emt 0:00:00] Qe7 is the strong threat.} Ra8 {[%emt 0:00:00]} 34. Rd5 {[%emt 0:00:00]} Qf4+ {[%emt 0:02:20]} 35. Kh3 {[%emt 0:00:00] Threatens to win with Rd4.} g6 $2 {[%emt 0:04:46] This move loses the game for Black.} (35... Ra4 $16) 36. Rd4 $18 {[%emt 0:00:00]} Qf6 {[%emt 0:00:09]} 37. Kg2 {[%emt 0:00:00]} Rb8 {[%emt 0:01:24]} 38. Qd2 {[%emt 0:00:00]} Qe6 $2 {[%emt 0:02:21]} (38... Kg7 39. Kg3 Ra8) 39. Kg3 {[%emt 0:00:00]} ({Less strong is} 39. Qxh6 Qxa2+ 40. Kg3 Qa7 $18) 39... Kh7 {[%emt 0:00:17]} 40. Rd6 {[%emt 0:00:00]} (40. a4 $142) 40... Qe8 $2 {[%emt 0:00:12]} (40... Qc4 {was necessary.} 41. Rd4 Qc7+ 42. Kh3 Qe7) 41. Rd7 {[%emt 0:00:00]} Rb5 {[%emt 0:01:15] Inhibits Qd5.} (41... Qe6 $18 42. Qf4 Qxd7 43. Qxb8 Qd5) 42. Rd8 {[%emt 0:00:00] Weighted Error Value: White=0.34/Black=0.61.  Loses game:     	---       	Black=1      Mistake:       	White=4     	Black=7      Inaccurate:     	White=1     	Black=3      OK:         	White=9     	Black=8      Best:        	White=7     	Black=3      Strong:       	White=1     	Black=1} 1-0

[Event "LR Global GM Aspirant-1 2024"]
[Site "Dhaka"]
[Date "2024.02.14"]
[Round "3.2"]
[White "Aradhya, Garg"]
[Black "Mohammad Fahad, Rahman"]
[Result "1/2-1/2"]
[ECO "D30"]
[WhiteElo "2390"]
[BlackElo "2418"]
[Annotator "TA"]
[PlyCount "105"]
[EventDate "2024.02.12"]
[EventType "tourn"]
[EventCountry "BAN"]
[SourceTitle "playchess.com"]
[Source "ChessBase"]
[SourceQuality "1"]
[TimeControl "5400+30"]

{[%evp 17,105,-10,-3,0,8,9,19,15,66,75,60,58,48,0,0,0,20,0,14,16,8,8,14,10,4,5,14,3,9,5,10,12,10,12,9,8,24,5,47,39,46,43,63,66,63,56,49,29,27,29,56,48,61,48,54,21,43,35,35,8,14,0,6,9,6,8,10,6,5,3,6,8,13,6,8,8,6,5,4,0,21,13,13,13,13,13,23,23,23,23]} 1. d4 {[%emt 0:00:02]} d5 {[%emt 0:05:10]} 2. c4 {[%emt 0:00:04]} e6 {[%emt 0:00:22]} 3. Nf3 {[%emt 0:00:07]} c6 {[%emt 0:00:25]} 4. e3 {[%emt 0:01:05]} Nf6 {[%emt 0:00:23]} 5. Bd3 {[%emt 0:00:42]} dxc4 {[%emt 0:00:24]} 6. Bxc4 {[%emt 0:00:04]} Nbd7 {[%emt 0:00:06]} 7. O-O {[%emt 0:02:02]} b5 {[%emt 0:02:44]} 8. Bb3 {[%emt 0:00:51] D30: Queen's Gambit Declined: Systems without Nc3.} c5 {[%emt 0:10:16]} 9. Nc3 {[%emt 0:11:57]} b4 {[%emt 0:03:06]} 10. Na4 {[%emt 0:00:55]} Ba6 {[%emt 0:06:42]} 11. Re1 $1 {[%emt 0:08:35]} c4 {[%emt 0:00:39]} 12. Bc2 {[%emt 0:01:03]} Bd6 {[%emt 0:00:16]} (12... Bb7 $11) 13. e4 $14 {[%emt 0:01:14]} e5 {[%emt 0:00:40]} 14. dxe5 {[%emt 0:10:00]} Nxe5 {[%emt 0:00:42]} 15. Nd4 $146 {[%emt 0:05:35]} ({Predecessor:} 15. Bf4 Qc7 16. Nxe5 Bxe5 17. Bxe5 Qxe5 18. Qd2 O-O 19. Rad1 Rab8 20. h3 Nh5 21. g3 {½-½ Matlakov,M (2695)-Ter Sahakyan,S (2580) EU-ch 16th Jerusalem 2015 (2)}) 15... O-O {[%emt 0:04:28]} 16. Nf5 {[%emt 0:10:42]} Bc7 {[%emt 0:00:49]} 17. Nc5 {[%emt 0:04:12]} Bc8 {[%emt 0:06:16]} 18. Bf4 {[%emt 0:03:02]} Bxf5 {[%emt 0:19:50]} 19. exf5 {[%emt 0:00:19]} Qxd1 {[%emt 0:03:14]} 20. Raxd1 {[%emt 0:01:59]} Nf3+ {[%emt 0:00:18]} 21. gxf3 {[%emt 0:00:04]} Bxf4 {[%emt 0:00:05]} 22. Rd4 {[%emt 0:00:33]} Rfc8 {[%emt 0:03:48]} 23. Na6 {[%emt 0:01:15]} (23. Rxc4 Bd6 24. Be4 Nxe4 (24... Rxc5 $2 25. Rxc5 Nxe4 26. Rd5 $18) 25. fxe4 Rxc5 $19 (25... Bxc5 26. Rec1 $11)) 23... Bh6 {[%emt 0:00:16]} 24. b3 {[%emt 0:02:31]} c3 $1 {[%emt 0:01:42]} 25. Nxb4 {[%emt 0:03:19]} a5 {[%emt 0:02:08]} 26. Nd3 {[%emt 0:00:33]} Rd8 {[%emt 0:01:40]} 27. Rc4 {[%emt 0:01:49]} Bd2 {[%emt 0:01:03]} 28. Re5 {[%emt 0:00:24]} Kf8 {[%emt 0:02:42]} 29. a3 {[%emt 0:11:35]} Nh5 {[%emt 0:10:19]} 30. Rc7 {[%emt 0:04:23]} Re8 {[%emt 0:05:40]} 31. Rxe8+ {[%emt 0:02:11]} Rxe8 {[%emt 0:00:02]} 32. b4 {[%emt 0:00:08]} axb4 {[%emt 0:00:34]} 33. axb4 {[%emt 0:00:29]} Re7 {[%emt 0:01:08]} 34. Rc8+ {[%emt 0:02:37]} Re8 {[%emt 0:00:02]} 35. Rc4 {[%emt 0:00:10]} Nf6 {[%emt 0:00:46]} 36. Rc7 {[%emt 0:02:19]} Re7 {[%emt 0:02:42]} 37. Rc8+ {[%emt 0:00:19]} Re8 {[%emt 0:00:02]} 38. Rxe8+ {[%emt 0:01:24]} Kxe8 {[%emt 0:00:27]} 39. Bb3 {[%emt 0:00:18]} Ke7 {[%emt 0:01:13]} 40. Kf1 {[%emt 0:00:30]} Ne8 {[%emt 0:00:25]} 41. b5 {[%emt 0:00:41]} Nd6 {[%emt 0:00:14]} 42. b6 {[%emt 0:00:01]} Kd7 {[%emt 0:00:35]} 43. Nb4 {[%emt 0:02:40]} Nxf5 {[%emt 0:01:35]} 44. b7 {[%emt 0:00:25]} (44. Bxf7 Nd4 45. b7 Bf4 $11) 44... Bf4 {[%emt 0:03:39]} 45. Nd5 {[%emt 0:02:00]} ({Much weaker is} 45. Bxf7 Nd4 46. Bg8 c2 47. Nxc2 Nxc2 48. Bxh7 Nd4 $17) 45... Be5 {[%emt 0:00:53]} 46. f4 {[%emt 0:01:41]} Bb8 {[%emt 0:00:07]} 47. Nxc3 {[%emt 0:01:32]} Bxf4 {[%emt 0:00:23]} 48. h3 {[%emt 0:00:05]} ({Not} 48. Bxf7 Be5 $18) 48... f6 {[%emt 0:01:20]} 49. Bc2 {[%emt 0:00:14]} Ne7 {[%emt 0:00:45]} 50. Bxh7 {[%emt 0:00:51]} f5 {[%emt 0:00:29]} 51. Ne2 {[%emt 0:01:03]} Be5 {[%emt 0:00:34]} 52. Nd4 {[%emt 0:00:58]} Kc7 {[%emt 0:00:29]} 53. Nxf5 {[%emt 0:00:22]} 1/2-1/2

[Event "LR Global GM Aspirant-1 2024"]
[Site "Dhaka"]
[Date "2024.02.14"]
[Round "3.3"]
[White "Mayank Chakraborty"]
[Black "Panesar Vedant"]
[Result "1/2-1/2"]
[ECO "E20"]
[WhiteElo "2409"]
[BlackElo "2452"]
[Annotator "TA"]
[PlyCount "38"]
[EventDate "2024.02.12"]
[EventType "tourn"]
[EventCountry "BAN"]
[SourceTitle "playchess.com"]
[Source "ChessBase"]
[SourceQuality "1"]
[TimeControl "5400+30"]

{[%evp 9,38,-11,-6,-5,8,0,0,0,0,0,0,0,0,0,4,0,14,0,0,0,0,0,0,-13,151,0,8,0,137,0,0]} 1. d4 {[%emt 0:00:02]} Nf6 {[%emt 0:00:02]} 2. c4 {[%emt 0:00:06]} e6 {[%emt 0:00:04]} 3. Nc3 {[%emt 0:00:04]} Bb4 {[%emt 0:00:05]} 4. Bd2 {[%emt 0:00:05]} c5 {[%emt 0:00:10]} 5. dxc5 {[%emt 0:00:33]} Bxc5 {[%emt 0:00:08]} 6. Nf3 {[%emt 0:02:17]} O-O {[%emt 0:00:12]} 7. g3 {[%emt 0:00:21]} d5 {[%emt 0:00:08]} 8. cxd5 {[%emt 0:00:18]} exd5 {[%emt 0:00:02]} 9. Bg2 {[%emt 0:01:44]} Nc6 {[%emt 0:00:06]} 10. Na4 {[%emt 0:01:39]} Be7 {[%emt 0:00:21]} 11. O-O {[%emt 0:00:16]} d4 {[%emt 0:00:18] [#]} 12. b4 $1 {[%emt 0:00:59]} a6 {[%emt 0:01:34][%cal Of8e8]} 13. Rc1 {[%emt 0:05:05]} Bg4 {[%emt 0:01:51][%cal Of8e8]} 14. Nc5 {[%emt 0:00:48]} Bxc5 {[%emt 0:00:01]} 15. bxc5 {[%emt 0:00:17]} Re8 {[%emt 0:00:05]} 16. Bf4 {[%emt 0:00:34]} Nh5 $2 {[%emt 0:00:01] [#]} (16... Ne4 $11 17. Qc2 Qd7) 17. Bd2 $2 {[%emt 0:00:07] This pair of bishops is nice.} (17. Bd6 $16) 17... Nf6 {[%emt 0:00:01]} 18. Bf4 {[%emt 0:00:07]} Nh5 {[%emt 0:00:01]} (18... Ne4 $11 {remains equal.} 19. Qc2 Qd7) 19. Bd2 {[%emt 0:00:07]} (19. Bd6 $16) 19... Nf6 {[%emt 0:00:31] Weighted Error Value: White=0.30/Black=0.38.  Mistake:       	White=2     	Black=2      OK:         	White=5     	Black=8} 1/2-1/2